Cogmind - Beta 15 @@@ ROGUE MODE // 2025.09.01 @ 15:21:08 Player: Bolche Result: Destroyed by G-47 Trooper with Particle Gun Performance ------------- Evolutions (2) 1000 Regions Visited (4) 800 Robots Destroyed (22) 110 Value Destroyed (650) 650 Prototype IDs (1) 20 Alien Tech Used (0) 0 Bonus (350) 350 TOTAL SCORE: 2930 Bonus ------- Follower Combat Kills 350 Cogmind --------- Core Integrity 0/550 Matter 300/300 Energy 100/100 System Corruption 0% Temperature Cool (9) Movement Core (200) Ox3 Location -8/Storage Parts ------- > --- POWER (1) -------- (None) > --- PROPULSION (4) --- (None) > --- UTILITY (4) ------ Medium Storage Unit Visual Processing Unit Improved Signal Interpreter Advanced Targeting Computer > --- WEAPON (2) ------- (None) > --- INVENTORY (10) --- Small Storage Unit Small Storage Unit Machine Analyzer Reaction Control System Hardened Medium Armor Plating Hacking Suite Drone Bay (2/2) Minigun Datajack Peak State ------------ > --- POWER ------------ Light Nuclear Core > --- PROPULSION ------- Armored Treads Aluminum Leg Improved Aluminum Leg Carbon-fiber Leg > --- UTILITY ---------- Medium Storage Unit Visual Processing Unit Improved Signal Interpreter Advanced Targeting Computer > --- WEAPON ----------- High-powered Shotgun Gauss Rifle > --- INVENTORY -------- Light Ion Engine Small Storage Unit Small Storage Unit Machine Analyzer Reaction Control System Hardened Medium Armor Plating Hacking Suite Drone Bay Minigun Datajack [Rating: 30] Favorites ----------- Power Light Nuclear Core Engine Light Ion Engine Power Core Light Nuclear Core Propulsion Aluminum Leg Treads Light Treads Leg Aluminum Leg Flight Unit Improved VTOL Module Utility Advanced Targeting Computer Device Heat Sink Storage Small Storage Unit Processor Advanced Targeting Computer Protection Medium Armor Plating Weapon High-powered Shotgun Energy Gun Pulse Rifle Energy Cannon EM Pulse Cannon Ballistic Gun High-powered Shotgun Launcher Grenade Launcher Special Weapon Welding Torch Build | -11 -10 -9 -8 -8 ------- Run | Yrd Mat Mat Mat Sto Slots Evolved 4 | . . 2 2 . Power . | . . . . . Propulsion 2 | . . 1 1 . Utility 2 | . . 1 1 . Weapon . | . . . . . Parts Attached 37 | 6 7 4 14 6 Power 6 | 1 1 . 3 1 Engine 3 | 1 . . 2 . Core 3 | . 1 . 1 1 Reactor . | . . . . . Propulsion 10 | 2 . 1 3 4 Treads 3 | . . . 3 . Leg 6 | 2 . . . 4 Wheel . | . . . . . Hover . | . . . . . Flight 1 | . . 1 . . Utility 10 | 1 3 2 4 . Device 1 | . 1 . . . Storage 4 | 1 1 . 2 . Processor 3 | . . 2 1 . Hackware . | . . . . . Protection 2 | . 1 . 1 . Artifact . | . . . . . Weapon 11 | 2 3 1 4 1 Energy Gun 3 | 1 1 . 1 . Energy Cannon 2 | . . . 2 . Ballistic Gun 3 | 1 . . 1 1 Ballistic Cannon . | . . . . . Launcher 2 | . 1 1 . . Special Weapon 1 | . 1 . . . Impact Weapon . | . . . . . Slashing Weapon . | . . . . . Piercing Weapon . | . . . . . Special Melee Weapon . | . . . . . Unidentified Prototypes 1 | . . 1 . . Parts Lost 20 | . 1 2 7 10 Power 4 | . . 1 1 2 Propulsion 8 | . . . 2 6 Utility 1 | . . . 1 . Weapon 7 | . 1 1 3 2 Highest Loss Streak 7 | . 1 1 5 7 To Critical Strikes . | . . . . . Average Backups 8 | 4 7 7 8 9 Power . | . 1 1 . . Propulsion 1 | 3 3 2 . . Utility 4 | . . 2 4 6 Weapon 1 | . 1 1 1 1 Tool/Special . | . . . . . Unused Backups 13 | . 2 2 2 7 Power . | . . . . . Propulsion 6 | . 2 2 2 . Utility 5 | . . . . 5 Weapon 1 | . . . . 1 Tool/Special 1 | . . . . 1 Average Slot Usage (%) 85 | . 94 84 77 90 Engine 3 | . 10 . 4 . Core 5 | . 3 9 3 8 Treads 5 | . . . 8 5 Leg 18 | . 28 22 9 22 Storage 11 | . 20 11 9 9 Processor 18 | . . 17 22 27 Protection 2 | . 2 4 3 . Energy Gun 5 | . 18 . 4 . Energy Cannon 2 | . . . 5 . Ballistic Gun 7 | . . . 4 16 Launcher 2 | . 5 10 . . Special Weapon 1 | . 2 11 . . Peak Build Rating 30 | 6 9 16 25 30 Average Rating 17 | 4 7 12 19 26 On Entrance 9 | . 6 9 11 22 Naked Turns . | . . . . . Heaviest Build 27 | 10 18 15 27 22 Greatest Support 60 | 20 20 20 60 60 Greatest Overweight (x) 6 | 3 . 4 6 3 Average Overweight (x) . | . . . . . Largest Inventory Capacity 25 | 8 8 8 25 10 Average Capacity 8 | 7 8 8 8 10 Most Carried 10 | 6 8 8 10 10 Average Carried 8 | 4 7 7 8 9 Final Capacity 10 | 8 8 8 10 10 Final Carried 10 | 6 8 8 10 9 Class Distribution -------------------- 56% | Mutant 41% | Scavenger-Mutant Dominant Class ---------------- Mutant | -10/Materials Mutant | -9/Materials Mutant | -8/Materials Scavenger-Mutant | -8/Storage Resources | -11 -10 -9 -8 -8 ----------- Run | Yrd Mat Mat Mat Sto Matter Collected 816 | 260 . 22 331 203 Remotely . | . . . . . Salvage Created 704 | . 167 85 317 135 Parts 39 | . 10 2 17 10 Haulers Intercepted 1 | . . . 1 . Recyclers Shooed . | . . . . . Parts Field Recycled . | . . . . . Retrieved Matter . | . . . . . Parts Self-Destructed . | . . . . . Prevented . | . . . . . Kills | -11 -10 -9 -8 -8 ------- Run | Yrd Mat Mat Mat Sto Combat Hostiles Destroyed 15 | . 4 2 5 4 Guns 8 | . . . 4 4 Cannons 1 | . . . 1 . AOE 6 | . 4 2 . . Classes Destroyed 8 | . 3 . 4 1 Hauler 1 | . . . 1 . Recycler 2 | . 1 . 1 . Watcher 4 | . 1 1 1 1 Swarmer 4 | . . . 2 2 Grunt 8 | . 4 2 1 1 Duelist 1 | . . . . 1 Sentry 1 | . . . 1 . Hunter 1 | . . . 1 . Best Kill Streak 6 | . 6 2 3 3 Combat Bots Only 4 | . 4 2 2 2 Max Kills in Single Turn 2 | . 2 1 2 1 Gunslinging . | . . . . . Exploded 1 | . 1 1 . . Melee . | . . . . . Uniques/NPCs Destroyed . | . . . . . Combat | -11 -10 -9 -8 -8 -------- Run | Yrd Mat Mat Mat Sto Hostile Shots Fired 328 | . 31 15 166 116 Missed 129 | . 17 6 55 51 Hits 199 | . 14 9 111 65 Melee 3 | . . . 1 2 Projectile 196 | . 14 9 110 63 Critical Strikes 4 | . . . 2 2 Damage Taken 2803 | . 214 149 1335 1105 Core 646 | . 50 39 245 312 Absorbed by Shields . | . . . . . Core Remaining (%) 90 | 100 80 90 . . Volleys Fired 54 | . 11 5 27 11 Largest 2 | . 2 1 2 2 Hottest 126 | . 70 33 126 53 Shots Fired 84 | . 18 5 39 22 Gun 60 | . 9 . 29 22 Cannon 10 | . . . 10 . Launcher 14 | . 9 5 . . Special . | . . . . . Kinetic 32 | . . . 10 22 Thermal 19 | . . . 19 . Explosive 14 | . 9 5 . . Electromagnetic 19 | . 9 . 10 . Robot Hit Streak 9 | . 5 4 9 5 Robot Miss Streak 3 | . 2 1 3 2 Penetration Max . | . . . . . Secondary Targets 2 | . . . . 2 Max Gunslinging Chain 1 | . . . . 1 Shots Hit Robots 53 | . 10 4 25 14 Core Hits 39 | . 13 4 14 8 Critical Kills . | . . . . . Critical Parts Destroyed . | . . . . . Critical Strikes . | . . . . . Melee Attacks . | . . . . . Impact . | . . . . . Slashing . | . . . . . Piercing . | . . . . . Sneak Attacks . | . . . . . Combat Hostiles . | . . . . . Follow-up Attacks . | . . . . . Damage Inflicted 1759 | . 529 387 577 266 Guns 740 | . 39 . 435 266 Cannons 132 | . . . 132 . Explosions 876 | . 489 387 . . Melee . | . . . . . Ramming 11 | . 1 . 10 . Kinetic 461 | . . . 195 266 Thermal 240 | . . . 240 . Explosive 876 | . 489 387 . . Electromagnetic 171 | . 39 . 132 . Impact . | . . . . . Slashing . | . . . . . Piercing . | . . . . . Highest Corruption . | . . . . . Average Corruption . | . . . . . Corruption Purged . | . . . . . Corruption Blocked . | . . . . . Overload Shots . | . . . . . Overflow Damage 2 | . . 2 . . Projectiles . | . . . . . Explosions 2 | . . 2 . . Melee . | . . . . . Knockbacks . | . . . . . Impact . | . . . . . Kinetic . | . . . . . Secondary . | . . . . . Self-Inflicted Damage 45 | . 21 24 . . Shots 2 | . 1 1 . . Rammed 2 | . . . 2 . Targets Rammed 3 | . 1 . 2 . Kicked 1 | . 1 . . . Crushed . | . . . . . Highest Temperature 75 | . 75 9 63 20 Average Temperature 27 | . 36 6 25 10 Received Heat Transfer 927 | . 108 72 261 486 Siege Activations . | . . . . . Martial Activations . | . . . . . Shielding Activations . | . . . . . Robots Disrupted . | . . . . . Combat Hostiles . | . . . . . Robots Corrupted . | . . . . . Combat Hostiles . | . . . . . Parts Fried . | . . . . . Impact Corruptions . | . . . . . Robots Melted . | . . . . . Combat Hostiles . | . . . . . Parts Melted . | . . . . . Heat Transferred 518 | . . . 518 . Parts Sabotaged . | . . . . . Parts Stolen . | . . . . . Parts Stripped . | . . . . . Power Chain Reactions . | . . . . . Alert | -11 -10 -9 -8 -8 ------- Run | Yrd Mat Mat Mat Sto Maximum Alert Level 1 | . . . . 1 Low Security (%) 84 | 100 100 100 100 48 Level 1 15 | . . . . 51 Level 2 . | . . . . . Level 3 . | . . . . . Level 4 . | . . . . . Level 5 . | . . . . . High Security . | . . . . . Max Security . | . . . . . Peak Influence 375 | . 127 64 59 375 Initial 32 | . . 32 22 3 Average 67 | . 31 18 15 172 Influence Increases 1122 | . 165 86 239 632 Destroy 0b10 Robot/C 540 | . 80 40 100 320 Destroy 0b10 Robot/NC 35 | . 10 5 15 5 Destroy Leader 130 | . 22 12 34 62 Allied During Kill 192 | . . . . 192 Successful Hack 7 | . . . . 7 Disable Machine 45 | . 30 . . 15 Destroy Structure 53 | . 23 29 . 1 Partial Spotted 15 | . . . 15 . Lose Combat Pursuer 105 | . . . 75 30 Influence Decreases 960 | . 88 109 284 479 Entered New Map 83 | . . 45 32 6 Time Decay 517 | . 78 54 185 200 Lost Part 180 | . 10 10 67 93 Lost Ally 180 | . . . . 180 Squads Dispatched 11 | . . 1 4 6 Investigation 2 | . . . 1 1 Extermination . | . . . . . Reinforcement 7 | . . 1 3 3 Assault 2 | . . . . 2 Garrison . | . . . . . Intercept . | . . . . . Searches Triggered . | . . . . . Construction Impeded . | . . . . . Haulers Reinforced . | . . . . . Active Scanning Responses . | . . . . . Cargo Convoy Interrupts . | . . . . . Stealth | -11 -10 -9 -8 -8 --------- Run | Yrd Mat Mat Mat Sto Distress Signals 9 | . 1 . 3 5 Communications Jammed . | . . . . . Distress Signals . | . . . . . Times Spotted 72 | . 9 7 20 36 Peak Tracking Total 13 | . 7 4 6 13 Tactical Retreats 4 | . . . 2 2 Traps | -11 -10 -9 -8 -8 ------- Run | Yrd Mat Mat Mat Sto Traps Triggered 4 | . . . 2 2 Indirectly . | . . . . . Trap Hack Attempts . | . . . . . Triggered . | . . . . . Disarmed . | . . . . . Reprogrammed . | . . . . . Reused . | . . . . . Traps Extracted . | . . . . . Installed . | . . . . . Triggered . | . . . . . Machines | -11 -10 -9 -8 -8 ---------- Run | Yrd Mat Mat Mat Sto Machines Disabled 3 | . 2 . . 1 Max in Single Turn 1 | . 1 . . 1 Garrison Access 1 | . . . . 1 Machines Repaired . | . . . . . Machines Dismantled . | . . . . . Machines Sabotaged . | . . . . . Overloaded Fab Kills . | . . . . . Hacking | -11 -10 -9 -8 -8 --------- Run | Yrd Mat Mat Mat Sto Machines Accessed 9 | . 2 1 1 5 Terminals 9 | . 2 1 1 5 Fabricators . | . . . . . Repair Stations . | . . . . . Recycling Units . | . . . . . Scanalyzers . | . . . . . Garrison Access . | . . . . . Total Hacks 13 | . 3 1 2 7 Successful 5 | . 2 . . 3 Failed 8 | . 1 1 2 4 Catastrophic 1 | . . . . 1 Database Lockouts . | . . . . . Manual 1 | . . . . 1 Terminals 13 | . 3 1 2 7 Fabricators . | . . . . . Repair Stations . | . . . . . Recycling Units . | . . . . . Scanalyzers . | . . . . . Garrison Access . | . . . . . Terminal Hacks 5 | . 2 . . 3 Record 1 | . 1 . . . Open Door 2 | . . . . 2 Emergency Access Points 1 | . 1 . . . Recall Investigation 1 | . . . . 1 Fabricator Hacks . | . . . . . Repair Station Hacks . | . . . . . Recycling Unit Hacks . | . . . . . Scanalyzer . | . . . . . Garrison Access Hacks . | . . . . . Unauthorized Hacks . | . . . . . Terminals . | . . . . . Fabricators . | . . . . . Repair Stations . | . . . . . Recycling Units . | . . . . . Scanalyzers . | . . . . . Garrison Access . | . . . . . Data Cores Recovered . | . . . . . Used . | . . . . . Hacking Detections 4 | . 1 . . 3 Full Trace Events 1 | . . . . 1 Feedback Events . | . . . . . Feedback Blocked . | . . . . . Robot Schematics Acquired . | . . . . . Robots Built . | . . . . . Authchips . | . . . . . Time . | . . . . . Total Robot Build Rating . | . . . . . Part Schematics Acquired . | . . . . . Parts Built . | . . . . . Authchips . | . . . . . Time . | . . . . . Total Part Build Rating . | . . . . . Parts Repaired . | . . . . . Time . | . . . . . Parts Recycled . | . . . . . Recycled Matter . | . . . . . Retrieved Matter . | . . . . . Retrieved Components . | . . . . . Parts Scanalyzed . | . . . . . Part Schematics Acquired . | . . . . . Parts Damaged . | . . . . . Bothacking | -11 -10 -9 -8 -8 ------------ Run | Yrd Mat Mat Mat Sto Used RIF Installer . | . . . . . Robots Hacked . | . . . . . Non-combat . | . . . . . Combat . | . . . . . Robot Hacks Applied . | . . . . . Relay Couplers Released 1 | . . . . 1 Machine Destruction 1 | . . . . 1 Fabnet Peak Effective % . | . . . . . Robots Rewired . | . . . . . Allies Hacked . | . . . . . Hacks Repelled . | . . . . . Allies | -11 -10 -9 -8 -8 -------- Run | Yrd Mat Mat Mat Sto Total Allies 10 | . . . . 10 Largest Group 10 | . . . . 10 Highest-Rated Group 173 | . . . . 173 Highest-Rated Ally 29 | . . . . 29 Total Orders . | . . . . . Ally Attacks 93 | . . . . 93 Total Damage 1139 | . . . . 1139 Kills 12 | . . . . 12 Allies Corrupted 1 | . . . . 1 Allies Melted 1 | . . . . 1 Intel | -11 -10 -9 -8 -8 ------- Run | Yrd Mat Mat Mat Sto Active Infowar (turns) 1416 | . . 106 712 598 Optics 1416 | . . 106 712 598 Robot Analysis Total . | . . . . . Derelict Logs Recovered . | . . . . . Drone Launches . | . . . . . Drone Recoveries . | . . . . . Exploration | -11 -10 -9 -8 -8 ------------- Run | Yrd Mat Mat Mat Sto Turns Passed 1929 | 64 384 171 712 598 Spaces Moved 1194 | 45 278 118 350 403 Core 35 | 17 . 1 16 1 Treads 232 | . . . 137 95 Legs 927 | 28 278 117 197 307 Wheels . | . . . . . Hover . | . . . . . Flight . | . . . . . Fastest Speed 50 | 50 120 120 120 120 Average Speed 139 | 110 120 121 172 133 Slowest Speed 350 | 200 120 250 350 250 Overloaded Moves . | . . . . . Propulsion Burnouts . | . . . . . Robots Hopped . | . . . . . Potential Cave-ins . | . . . . . Cave-ins Triggered . | . . . . . Exploration Rate (%) 40 | 4 56 19 43 82 Regions Visited 4 Branch Regions 1 Pre-discovered Areas . | . . . . . Known Exits Taken 1 | . . . 1 . Unknown Exits Taken 3 | 1 1 1 . . Scrap Searched . | . . . . . Spaces Dug 4 | . 4 . . . Terrain Destroyed 59 | . 24 35 . . Melee . | . . . . . Projectile . | . . . . . AOE 59 | . 24 35 . . Terrain Rammed . | . . . . . Walls Destroyed . | . . . . . Machines Disabled . | . . . . . Actions | -11 -10 -9 -8 -8 --------- Run | Yrd Mat Mat Mat Sto Total 1362 | 56 308 141 417 440 Wait 22 | . 3 2 5 12 Move 1191 | 44 277 117 350 403 Hop . | . . . . . Pick Up 30 | 6 6 4 13 1 Fast Attach 24 | 6 1 5 6 6 Attach 10 | . 1 1 6 2 Detach . | . . . . . Swap 9 | . 5 . 3 1 Drop 20 | . 3 7 6 4 Fire 54 | . 11 5 27 11 Melee . | . . . . . Ram . | . . . . . Kick 1 | . 1 . . . Crush 1 | . . . 1 . Escape Stasis . | . . . . . Rewire . | . . . . . Trap . | . . . . . Miscellaneous . | . . . . . Route ------- -11/Scrapyard -10/Materials -9/Materials -8/Materials -8/Storage (discovered 1 exit: [*Fac]) History --------- Turn | Location | Event 15 | -11/Scrapyard | Discovered new exit (range 16) 65 | -11/Scrapyard | Entered Materials 316 | -10/Materials | Build established: Mutant 414 | -10/Materials | Discovered new exit (range 16) 449 | -10/Materials | Entered another Materials area 449 | -9/Materials | Evolved 2 slots: Propulsion x1, Utility x1 602 | -9/Materials | Discovered new exit (range 16) 620 | -9/Materials | Entered another Materials area 620 | -8/Materials | Evolved 2 slots: Propulsion x1, Utility x1 968 | -8/Materials | Lost 5 parts (1p1n1u2w) 1321 | -8/Materials | Discovered new exit (range 6) 1329 | -8/Materials | Identified exit to Storage 1332 | -8/Materials | Entered Storage 1391 | -8/Storage | Build established: Scavenger-Mutant 1477 | -8/Storage | Core integrity fell below 50% 1478 | -8/Storage | Assisted by bots powering up and referring to "LRC-V3" 1845 | -8/Storage | Lost 5 allies 1911 | -8/Storage | Core integrity fell below 20% 1923 | -8/Storage | Discovered new exit (range 17) 1930 | -8/Storage | Destroyed by G-47 Trooper with Particle Gun Last Messages --------------- M-28 Smith repairs G-50 Soldier Lgt. Angular Momentum Engine. L-31 Rogue suffers critical hit (Burn). Hpw. Shotgun destroyed. M-28 Smith repairs W-25 Informer. O-24 Administrator sends out distress signal. O-24 Administrator: "IFF HANDSHAKE FAILED. SECURING TERMINAL." Critical hit (Burn: +37). Aluminum Leg destroyed. Gauss Rifle destroyed. Carbon-fiber Leg destroyed. Aluminum Leg destroyed. ALERT: Hostiles spotted, dispatching reinforcements to Terminal S010. Lgt. Nuclear Core destroyed. Lgt. Ion Engine destroyed. EXIT=FOUND K-01 Serf suffers critical hit (Burn). Imp. Aluminum Leg destroyed. Map ----- +----------------------------------------------------+ | ???"""????#" !=""" #### # | | ??????????###*%*Y" / ! # | | ????????????#%!""" # != # "T | | ????????????#=%%*%= # %[= # | | ???????"""" /% ! / " [ + | | ?????? """" # ########## ! # | | ?????? """"?# #????????##" ###+##/ | | ?????? ??# #?????????#"G"## | | ??????##????#+#########?#"""##""" ! | | ????????????#%""""" ??######""" | | ????????????# """"" ???????#""" | | ????????????# """"" ????????# | | ????????????# ????????#""" | | ????????????# ?????????#""" | | ????????????# ?????????#""" | | ????????????? ??????????# | | ????????????? ??????????#####/ | | ????????#########+############## | | ????????# | | ????????# | | ????????# a | | ????????# ku###############+#### | | ????????# lY#????????????# T?#### | | ????????# #????????????#" "##???? | | ????????#u #?????????????[[[?????? | | ????????# @ #?????????????[[[?????? | | ????????# a#?????????????###?????? | | ????????# #?????????????????????? | | ????????# g#?????????????????????? | | ????????+ +?????????????????????? | | ????????# g#?????????????????????? | | ????????# #?????????????????????? | | ????????+ #?????????????????????? | | ????????# #?????????????????????? | | ????????# #?????????????????????? | | ????????# #?????????????????????? | | ????????# < #?????????????????????? | | ????????# #?????????????????????? | | ????????#####?????????????????????? | | ??????????????????????????????????? | | ??????????????????????????????????? | | ??????????????????????????????????? | | ??????????????????????????????????? | | ??????????????????????????????????? | | ??????????????????????????????????? | | ??????????????????????????????????? | | | | | | | | | +----------------------------------------------------+ Best States ------------- Heat Dissipation 35 Energy Generation 14 Energy Capacity 160 Matter Stores 300 Matter Capacity 300 Sight Range 18 Terrain Scan Density 10 Armor Coverage 225 Utility Shielding 33 Evasion (%) 55 Targeting Accuracy 8 Recoil Reduction 3 Item Schematics ----------------- None Robot Schematics ------------------ None Fabricated ------------ Nothing Repaired ---------- Nothing Alien Tech Used ----------------- None Achievements -------------- Loot Pinata Challenges ------------ None Game ------ Seed ActiveSmartDeconstructor Manual? 0 Play Time 00:37:58 Cumulative 6.0 hours Start 2025.09.01 @ 14:35:30 End 2025.09.01 @ 15:21:08 Sessions 1 Manual Loads 0 Difficulty Rogue Special Mode None Game No. 14 Rogue 8 Adventurer 6 Explorer 0 Win Type - Total 0 Types 0/0/0/0/0/0/0/0/0/0 Lore% 4 Gallery% 8 Achievement% 7 Wizard Run 0 Options --------- Layout 1 ASCII 0 Keyboard 1 Movement Numpad Keybinds 1 Fullscreen 2 Font 24/Smallcaps Map View 50x35 Zoom Use 0% Tactical HUD 0 Map Filters NONE Filters NONE Steam 1 RUN: e8a157ef-9c39-49ea-8a3f-5fb88ab19bd3